fUSD/lending_fUSD_20260622
["ID","MTS","AMOUNT","RATE_DAILY","PERIOD"]
[425991356,1782079840000,-200.0,0.00021918,2]
[425991357,1782079840000,-163.0,0.00022,2]
[425991360,1782079840000,-611.0,0.00022,2]
[425991365,1782079840000,-650.09149837,0.00022195,2]
[425991364,1782079840000,-200.0,0.00022086,2]
[425991358,1782079840000,-152.0,0.00022,2]
[425991359,1782079840000,-371.0,0.00022,2]
[425991362,1782079840000,-173.0,0.00022,2]
[425991363,1782079840000,-537.0,0.00022,2]
[425991361,1782079840000,-338.0,0.00022,2]
[425991368,1782079840000,-200.0,0.00022529,2]
[425991378,1782079840000,-319.0,0.00023132,7]
[425991371,1782079840000,-163.0,0.00023,2]
[425991367,1782079840000,-1178.0,0.00022477,5]
[425991369,1782079840000,-153.6042386,0.00022602,2]
[425991376,1782079840000,-173.0,0.00023,2]
[425991401,1782079840000,-3773.70749426,0.0002421,2]
[425991402,1782079840000,-200.0,0.00024278,2]
[425991404,1782079840000,-432.69586917,0.00024369,2]
[425991433,1782079840000,-500.0,0.00024658,15]
[425991436,1782079840000,-233.45,0.00024658,2]
[425991438,1782079840000,-212.58824433,0.00024745,2]
[425991435,1782079840000,-1000.0,0.00024658,2]
[425991439,1782079840000,-200.0,0.00024789,2]
[425991437,1782079840000,-212.58824433,0.0002469,2]
[425991440,1782079840000,-3647.0,0.000248,2]
[425991434,1782079840000,-500.0,0.00024658,15]
[425991441,1782079840000,-6081.0,0.000248,2]
[425991442,1782079840000,-212.58824433,0.000248,2]
[425991443,1782079840000,-200.0,0.00024826,2]
[425991432,1782079840000,-500.0,0.00024658,15]
[425991444,1782079840000,-212.58824433,0.00024855,2]
[425991447,1782079840000,-352.7559999,0.00024963,2]
[425991448,1782079840000,-157.48580003,0.00024963,2]
[425991449,1782079840000,-181.08010149,0.00024963,2]
[425991452,1782079840000,-151.0,0.00024963,2]
[425991454,1782079840000,-212.58824433,0.00024965,2]
[425991450,1782079840000,-328.65947508,0.00024963,2]
[425991451,1782079840000,-426.80272326,0.00024963,2]
[425991453,1782079840000,-201.93286098,0.00024963,2]
[425991455,1782079840000,-179.0,0.00025,2]
[425991456,1782079840000,-630.48088768,0.00025,5]
[425991400,1782079840000,-200.0,0.00024036,2]
[425991446,1782079840000,-212.58824433,0.0002491,2]
[425991431,1782079840000,-500.0,0.00024657,30]
[425991445,1782079840000,-150.0,0.000249,2]
[425991430,1782079840000,-212.58824433,0.00024635,2]
[425991405,1782079840000,-537.68450001,0.00024415,2]
[425991424,1782079840000,-670.58624095,0.00024415,2]
[425991406,1782079840000,-151.0,0.00024415,2]
[425991407,1782079840000,-201.93286101,0.00024415,2]
[425991408,1782079840000,-256.70248179,0.00024415,2]
[425991403,1782079840000,-166.1,0.00024324,2]
[425991410,1782079840000,-352.7559999,0.00024415,2]
[425991416,1782079840000,-500.0,0.00024415,2]
[425991413,1782079840000,-174.61919141,0.00024415,2]
[425991412,1782079840000,-157.48580003,0.00024415,2]
[425991414,1782079840000,-578.20924308,0.00024415,2]
[425991411,1782079840000,-155.45410086,0.00024415,2]
[425991418,1782079840000,-151.0,0.00024415,2]
[425991420,1782079840000,-426.80272326,0.00024415,2]
[425991409,1782079840000,-212.58824433,0.00024415,2]
[425991425,1782079840000,-212.58824433,0.0002447,2]
[425991428,1782079840000,-212.58824433,0.0002458,2]
[425991427,1782079840000,-366.34346355,0.00024542,2]
[425991422,1782079840000,-201.93286101,0.00024415,2]
[425991421,1782079840000,-194.72792766,0.00024415,2]
[425991429,1782079840000,-650.09149837,0.00024626,2]
[425991426,1782079840000,-212.58824433,0.00024525,2]
[425991415,1782079840000,-8882.6885148,0.00024415,2]
[425991419,1782079840000,-151.0,0.00024415,2]
[425991417,1782079840000,-152.0,0.00024415,2]
[425991423,1782079840000,-201.93286101,0.00024415,2]
[425991498,1782079841000,-500.0,0.00026499,2]
[425991493,1782079841000,-319.49321,0.00026355,2]
[425991490,1782079841000,-166.1,0.00026296,2]
[425991494,1782079841000,-353.405121,0.0002636,2]
[425991497,1782079841000,-155.0,0.00026369,5]
[425991492,1782079841000,-200.0,0.00026331,2]
[425991496,1782079841000,-465.62813,0.00026369,2]
[425991495,1782079841000,-452.174158,0.00026369,2]
[425991487,1782079841000,-217.15233878,0.00026059,2]
[425991483,1782079841000,-157.48580012,0.00026059,2]
[425991499,1782079841000,-50000.0,0.000265,7]
[425991491,1782079841000,-200.0,0.00026296,2]
[425991500,1782079841000,-50000.0,0.000265,7]
[425991512,1782079841000,-225.18697532,0.00026607,2]
[425991504,1782079841000,-150.0,0.00026581,2]
[425991503,1782079841000,-150.0,0.00026581,2]
[425991510,1782079841000,-201.93286098,0.00026607,2]
[425991502,1782079841000,-150.0,0.00026581,2]
[425991507,1782079841000,-1229.0,0.00026581,2]
[425991505,1782079841000,-1360.0,0.00026581,2]
[425991508,1782079841000,-316.0,0.000266,2]
[425991509,1782079841000,-352.7559999,0.00026607,2]
[425991506,1782079841000,-383.0,0.00026581,2]
[425991511,1782079841000,-426.80272326,0.00026607,2]
[425991513,1782079841000,-820.03799924,0.00026668,7]
[425991489,1782079841000,-267.37,0.00026137,2]
[425991501,1782079841000,-3423.87354444,0.00026575,2]
[425991485,1782079841000,-151.0,0.00026059,2]
[425991465,1782079841000,-212.58824433,0.0002502,2]
[425991480,1782079841000,-2000.0,0.00026,2]
[425991461,1782079841000,-181.16384453,0.00025,2]
[425991459,1782079841000,-630.0,0.00025,2]
[425991463,1782079841000,-190.85,0.00025,2]
[425991457,1782079841000,-161.0,0.00025,2]
[425991458,1782079841000,-375.0,0.00025,2]
[425991464,1782079841000,-540.67889335,0.00025,2]
[425991462,1782079841000,-190.85,0.00025,2]
[425991460,1782079841000,-340.0,0.00025,2]
[425991467,1782079841000,-2000.0,0.000253,2]
[425991468,1782079841000,-200.0,0.00025374,2]
[425991466,1782079841000,-212.58824439,0.00025075,2]
[425991469,1782079841000,-352.7559999,0.00025511,2]
[425991473,1782079841000,-151.0,0.00025511,2]
[425991474,1782079841000,-209.40437684,0.00025511,2]
[425991472,1782079841000,-426.80272326,0.00025511,2]
[425991470,1782079841000,-157.48580003,0.00025511,2]
[425991471,1782079841000,-187.78006524,0.00025511,2]
[425991475,1782079841000,-200.0,0.00025542,2]
[425991514,1782079841000,-2000.0,0.000267,2]
[425991476,1782079841000,-1467.0,0.00025838,5]
[425991477,1782079841000,-366.34346355,0.0002592,2]
[425991479,1782079841000,-2401.51862858,0.00026,2]
[425991482,1782079841000,-352.7559999,0.00026059,2]
[425991484,1782079841000,-194.72792766,0.00026059,2]
[425991481,1782079841000,-45419.08613729,0.00026027,2]
[425991486,1782079841000,-426.80272326,0.00026059,2]
[425991478,1782079841000,-200.0,0.00025922,2]
[425991488,1782079841000,-185.2,0.00026104,2]
[425991517,1782079841000,-350.0,0.00026958,3]
[425991550,1782079841000,-1022.16401578,0.00027365,2]
[425991515,1782079841000,-350.0,0.00026849,2]
[425991547,1782079841000,-400.786494,0.00027335,2]
[425991551,1782079841000,-700.0,0.0002737,2]
[425991561,1782079841000,-500.0,0.00027395,2]
[425991558,1782079841000,-500.0,0.00027395,2]
[425991560,1782079841000,-500.0,0.00027395,2]
[425991559,1782079841000,-500.0,0.00027395,2]
[425991553,1782079841000,-4197.38768481,0.0002739,2]
[425991552,1782079841000,-248.46389871,0.00027387,2]
[425991562,1782079841000,-500.0,0.00027395,2]
[425991555,1782079841000,-500.0,0.00027395,2]
[425991554,1782079841000,-8292.52942486,0.0002739,2]
[425991556,1782079841000,-500.0,0.00027395,2]
[425991545,1782079841000,-846.385861,0.00027335,2]
[425991557,1782079841000,-500.0,0.00027395,2]
[425991574,1782079841000,-500.0,0.00027395,2]
[425991563,1782079841000,-500.0,0.00027395,2]
[425991568,1782079841000,-500.0,0.00027395,2]
[425991571,1782079841000,-500.0,0.00027395,2]
[425991570,1782079841000,-500.0,0.00027395,2]
[425991565,1782079841000,-500.0,0.00027395,2]
[425991572,1782079841000,-500.0,0.00027395,2]
[425991575,1782079841000,-500.0,0.00027395,2]
[425991573,1782079841000,-500.0,0.00027395,2]
[425991564,1782079841000,-500.0,0.00027395,2]
[425991566,1782079841000,-500.0,0.00027395,2]
[425991516,1782079841000,-396.29,0.00026926,2]
[425991569,1782079841000,-500.0,0.00027395,2]
[425991544,1782079841000,-10043.2909442,0.00027335,2]
[425991567,1782079841000,-500.0,0.00027395,2]
[425991542,1782079841000,-337.596286,0.00027335,2]
[425991548,1782079841000,-1694.4010257,0.00027335,2]
[425991518,1782079841000,-644.22,0.00026959,2]
[425991520,1782079841000,-250.0,0.00027,2]
[425991521,1782079841000,-1056.11614905,0.00027,2]
[425991523,1782079841000,-350.0,0.00027002,3]
[425991522,1782079841000,-530.0,0.00027,2]
[425991524,1782079841000,-200.0,0.00027049,2]
[425991526,1782079841000,-3000.0,0.00027123,3]
[425991537,1782079841000,-366.34346355,0.00027297,2]
[425991528,1782079841000,-599.60298507,0.00027154,2]
[425991527,1782079841000,-318.0,0.00027123,2]
[425991530,1782079841000,-352.7559999,0.00027155,2]
[425991529,1782079841000,-695.39793187,0.00027154,2]
[425991519,1782079841000,-644.33,0.0002698,2]
[425991531,1782079841000,-209.40437684,0.00027155,2]
[425991532,1782079841000,-426.80272326,0.00027155,2]
[425991540,1782079841000,-520.4112881,0.00027335,2]
[425991543,1782079841000,-537.4112152,0.00027335,2]
[425991539,1782079841000,-250.0,0.00027304,9]
[425991546,1782079841000,-6473.157495,0.00027335,2]
[425991549,1782079841000,-497.8292088,0.00027335,2]
[425991534,1782079841000,-163.63852368,0.00027261,2]
[425991535,1782079841000,-232.0,0.00027265,2]
[425991541,1782079841000,-2541.1043834,0.00027335,2]
[425991536,1782079841000,-10000.0,0.00027297,2]
[425991538,1782079841000,-250.0,0.00027304,9]
[425991525,1782079841000,-650.09149837,0.00027058,2]
[425991533,1782079841000,-233.5188934,0.00027155,2]
[425991605,1782079842000,-509.3287975,0.00027397,2]
[425991601,1782079842000,-30000.0,0.00027397,2]
[425991602,1782079842000,-156.942245,0.00027397,2]
[425991607,1782079842000,-500.0,0.00027397,2]
[425991609,1782079842000,-500.0,0.00027397,2]
[425991604,1782079842000,-501.82455083,0.00027397,2]
[425991603,1782079842000,-33852.795085,0.00027397,2]
[425991611,1782079842000,-500.0,0.00027397,2]
[425991610,1782079842000,-500.0,0.00027397,2]
[425991613,1782079842000,-500.0,0.00027397,2]
[425991606,1782079842000,-513.44426899,0.00027397,2]
[425991620,1782079842000,-500.0,0.00027397,2]
[425991614,1782079842000,-200.0,0.00027397,2]
[425991618,1782079842000,-500.0,0.00027397,2]
[425991616,1782079842000,-500.0,0.00027397,2]
[425991617,1782079842000,-500.0,0.00027397,2]
[425991615,1782079842000,-500.0,0.00027397,2]
[425991619,1782079842000,-500.0,0.00027397,2]
[425991624,1782079842000,-613.15,0.00027397,2]
[425991623,1782079842000,-500.0,0.00027397,2]
[425991612,1782079842000,-500.0,0.00027397,2]
[425991621,1782079842000,-500.0,0.00027397,2]
[425991608,1782079842000,-500.0,0.00027397,2]
[425991599,1782079842000,-50638.63297788,0.00027396,2]
[425991586,1782079842000,-500.0,0.00027395,2]
[425991597,1782079842000,-538.38914193,0.00027396,2]
[425991622,1782079842000,-500.0,0.00027397,2]
[425991576,1782079842000,-500.0,0.00027395,2]
[425991577,1782079842000,-500.0,0.00027395,2]
[425991580,1782079842000,-500.0,0.00027395,2]
[425991582,1782079842000,-500.0,0.00027395,2]
[425991579,1782079842000,-500.0,0.00027395,2]
[425991587,1782079842000,-500.0,0.00027395,2]
[425991581,1782079842000,-500.0,0.00027395,2]
[425991578,1782079842000,-500.0,0.00027395,2]
[425991588,1782079842000,-500.0,0.00027395,2]
[425991596,1782079842000,-538.38914193,0.00027396,2]
[425991583,1782079842000,-500.0,0.00027395,2]
[425991584,1782079842000,-500.0,0.00027395,2]
[425991589,1782079842000,-500.0,0.00027395,2]
[425991592,1782079842000,-538.38914193,0.00027396,2]
[425991594,1782079842000,-538.38914193,0.00027396,2]
[425991590,1782079842000,-500.0,0.00027395,2]
[425991593,1782079842000,-538.38914193,0.00027396,2]
[425991591,1782079842000,-538.38914193,0.00027396,2]
[425991595,1782079842000,-538.38914193,0.00027396,2]
[425991598,1782079842000,-538.38914193,0.00027396,2]
[425991600,1782079842000,-150.0,0.00027396,2]
[425991585,1782079842000,-500.0,0.00027395,2]
[425991625,1782079842000,-500.0,0.00027397,2]
[425991643,1782079842000,-500.0,0.00027397,2]
[425991626,1782079842000,-500.0,0.00027397,2]
[425991655,1782079842000,-500.0,0.00027397,2]
[425991653,1782079842000,-908.35,0.00027397,2]
[425991654,1782079842000,-500.0,0.00027397,2]
[425991661,1782079842000,-500.0,0.00027397,2]
[425991659,1782079842000,-500.0,0.00027397,2]
[425991657,1782079842000,-500.0,0.00027397,2]
[425991658,1782079842000,-512.55707541,0.00027397,2]
[425991663,1782079842000,-500.0,0.00027397,2]
[425991665,1782079842000,-500.0,0.00027397,2]
[425991667,1782079842000,-320.40893862,0.00027397,2]
[425991651,1782079842000,-616.3,0.00027397,2]
[425991669,1782079842000,-781.73,0.00027397,2]
[425991627,1782079842000,-500.0,0.00027397,2]
[425991675,1782079842000,-500.0,0.00027397,2]
[425991677,1782079842000,-500.0,0.00027397,2]
[425991664,1782079842000,-500.0,0.00027397,2]
[425991673,1782079842000,-500.0,0.00027397,2]
[425991666,1782079842000,-500.0,0.00027397,2]
[425991676,1782079842000,-500.0,0.00027397,2]
[425991678,1782079842000,-500.0,0.00027397,2]
[425991680,1782079842000,-500.0,0.00027397,2]
[425991682,1782079842000,-674.69054557,0.00027397,2]
[425991662,1782079842000,-507.68186157,0.00027397,2]
[425991652,1782079842000,-530.63697648,0.00027397,2]
[425991671,1782079842000,-500.0,0.00027397,2]
[425991660,1782079842000,-500.0,0.00027397,2]
[425991650,1782079842000,-500.0,0.00027397,2]
[425991629,1782079842000,-500.0,0.00027397,2]
[425991632,1782079842000,-500.0,0.00027397,2]
[425991630,1782079842000,-500.0,0.00027397,2]
[425991631,1782079842000,-500.0,0.00027397,2]
[425991635,1782079842000,-500.0,0.00027397,2]
[425991634,1782079842000,-500.0,0.00027397,2]
[425991636,1782079842000,-500.0,0.00027397,2]
[425991637,1782079842000,-500.0,0.00027397,2]
[425991639,1782079842000,-500.0,0.00027397,2]
[425991628,1782079842000,-500.0,0.00027397,2]
[425991633,1782079842000,-500.0,0.00027397,2]
[425991647,1782079842000,-500.0,0.00027397,2]
[425991638,1782079842000,-500.0,0.00027397,2]
[425991640,1782079842000,-500.0,0.00027397,2]
[425991649,1782079842000,-518.89859704,0.00027397,2]
[425991641,1782079842000,-500.0,0.00027397,2]
[425991656,1782079842000,-500.0,0.00027397,2]
[425991642,1782079842000,-500.0,0.00027397,2]
[425991648,1782079842000,-500.0,0.00027397,2]
[425991645,1782079842000,-500.0,0.00027397,2]
[425991646,1782079842000,-500.0,0.00027397,2]
[425991644,1782079842000,-500.0,0.00027397,2]
[425991690,1782079843000,-381.40682691,0.0002,2]
[425991691,1782079843000,-292.805257,0.0002,2]
[425991689,1782079843000,-216.32317309,0.00016454,2]
[425991692,1782079844000,-1036.65328089,0.0002,2]
[425991702,1782079844000,-500.0,0.00027395,2]
[425991693,1782079844000,-4816.4846352,0.0002,2]
[425991694,1782079844000,-2172.55,0.00021606,2]
[425991695,1782079844000,-2486.27,0.00022,2]
[425991696,1782079844000,-761.99,0.00023213,7]
[425991698,1782079844000,-1022.16401578,0.00027219,2]
[425991699,1782079844000,-500.0,0.00027395,2]
[425991700,1782079844000,-500.0,0.00027395,2]
[425991697,1782079844000,-501.0,0.00027137,2]
[425991701,1782079844000,-500.0,0.00027395,2]
[425991711,1782079844000,-500.0,0.00027395,2]
[425991707,1782079844000,-500.0,0.00027395,2]
[425991713,1782079844000,-500.0,0.00027395,2]
[425991710,1782079844000,-500.0,0.00027395,2]
[425991704,1782079844000,-500.0,0.00027395,2]
[425991708,1782079844000,-500.0,0.00027395,2]
[425991715,1782079844000,-500.0,0.00027395,2]
[425991714,1782079844000,-500.0,0.00027395,2]
[425991709,1782079844000,-500.0,0.00027395,2]
[425991705,1782079844000,-500.0,0.00027395,2]
[425991703,1782079844000,-500.0,0.00027395,2]
[425991706,1782079844000,-500.0,0.00027395,2]
[425991712,1782079844000,-500.0,0.00027395,2]
[425991718,1782079845000,-500.0,0.00027397,2]
[425991717,1782079845000,-500.0,0.00027397,2]
[425991716,1782079845000,-177.35945443,0.00027397,2]
[425991720,1782079845000,-500.0,0.00027397,2]
[425991723,1782079845000,-500.0,0.00027397,2]
[425991725,1782079845000,-500.0,0.00027397,2]
[425991726,1782079845000,-500.0,0.00027397,2]
[425991721,1782079845000,-500.0,0.00027397,2]
[425991727,1782079845000,-137.62524263,0.00027397,2]
[425991724,1782079845000,-500.0,0.00027397,2]
[425991719,1782079845000,-503.77,0.00027397,2]
[425991722,1782079845000,-500.0,0.00027397,2]
[425991730,1782079862000,2500.0,0.00026492,120]
[425991731,1782079933000,1132.58,0.00030136,120]
[425991732,1782079952000,496.5,0.00013977,2]
[425991733,1782080046000,406.64,0.00013389,2]
[425991734,1782080175000,1000.0,0.00030137,120]
[425991735,1782080255000,164.59889639,0.00013993,2]
[425991736,1782080262000,209.21428088,0.00030136,120]
[425991737,1782080339000,250.0,0.00014,2]
[425991738,1782080434000,-500.0,0.0001409,2]
[425991740,1782080434000,-500.0,0.0001409,2]
[425991739,1782080434000,-500.0,0.0001409,2]
[425991741,1782080434000,-589.58499745,0.0001409,2]
[425991743,1782080434000,-152.0,0.00014091,2]
[425991742,1782080434000,-150.0,0.00014091,2]
[425991744,1782080434000,-150.0,0.00014091,2]
[425991745,1782080434000,-151.0,0.00014091,2]
[425991747,1782080434000,-150.0,0.00014091,2]
[425991748,1782080434000,-150.0,0.00014092,2]
[425991749,1782080434000,-320.0,0.00014092,2]
[425991751,1782080434000,-314.0,0.00014092,2]
[425991746,1782080434000,-151.0,0.00014091,2]
[425991752,1782080434000,-152.0,0.00014092,2]
[425991750,1782080434000,-310.0,0.00014092,2]
[425991763,1782080434000,-317.0,0.00014093,2]
[425991762,1782080434000,-193.08425205,0.00014092,2]
[425991760,1782080434000,-347.8007731,0.00014092,2]
[425991758,1782080434000,-187.14596868,0.00014092,2]
[425991756,1782080434000,-309.0,0.00014092,2]
[425991761,1782080434000,-217.47502676,0.00014092,2]
[425991757,1782080434000,-174.1383048,0.00014092,2]
[425991755,1782080434000,-152.0,0.00014092,2]
[425991754,1782080434000,-316.0,0.00014092,2]
[425991753,1782080434000,-318.0,0.00014092,2]
[425991759,1782080434000,-500.0,0.00014092,2]
[425991775,1782080435000,-311.0,0.00014093,2]
[425991782,1782080435000,-319.0,0.00014093,2]
[425991781,1782080435000,-153.0,0.00014093,2]
[425991780,1782080435000,-309.0,0.00014093,2]
[425991778,1782080435000,-319.0,0.00014093,2]
[425991779,1782080435000,-316.0,0.00014093,2]
[425991777,1782080435000,-151.0,0.00014093,2]
[425991776,1782080435000,-317.0,0.00014093,2]
[425991774,1782080435000,-151.0,0.00014093,2]
[425991768,1782080435000,-319.0,0.00014093,2]
[425991772,1782080435000,-321.0,0.00014093,2]
[425991770,1782080435000,-317.0,0.00014093,2]
[425991771,1782080435000,-150.0,0.00014093,2]
[425991769,1782080435000,-320.0,0.00014093,2]
[425991767,1782080435000,-150.0,0.00014093,2]
[425991765,1782080435000,-309.0,0.00014093,2]
[425991766,1782080435000,-313.0,0.00014093,2]
[425991764,1782080435000,-150.0,0.00014093,2]
[425991784,1782080435000,-150.0,0.00014093,2]
[425991773,1782080435000,-316.0,0.00014093,2]
[425991783,1782080435000,-318.0,0.00014093,2]
[425991797,1782080435000,-310.0,0.00014093,2]
[425991786,1782080435000,-310.0,0.00014093,2]
[425991804,1782080435000,-600.0,0.00014093,2]
[425991806,1782080435000,-199.5,0.00014093,2]
[425991805,1782080435000,-300.0,0.00014093,2]
[425991785,1782080435000,-318.0,0.00014093,2]
[425991800,1782080435000,-318.0,0.00014093,2]
[425991802,1782080435000,-314.0,0.00014093,2]
[425991801,1782080435000,-151.0,0.00014093,2]
[425991799,1782080435000,-309.0,0.00014093,2]
[425991798,1782080435000,-151.0,0.00014093,2]
[425991803,1782080435000,-313.0,0.00014093,2]
[425991796,1782080435000,-309.0,0.00014093,2]
[425991794,1782080435000,-150.0,0.00014093,2]
[425991793,1782080435000,-310.0,0.00014093,2]
[425991791,1782080435000,-153.0,0.00014093,2]
[425991792,1782080435000,-314.0,0.00014093,2]
[425991790,1782080435000,-319.0,0.00014093,2]
[425991789,1782080435000,-317.0,0.00014093,2]
[425991788,1782080435000,-151.0,0.00014093,2]
[425991795,1782080435000,-316.0,0.00014093,2]
[425991787,1782080435000,-313.0,0.00014093,2]
[425991818,1782080436000,-315.0,0.00014094,2]
[425991819,1782080436000,-313.0,0.00014094,2]
[425991817,1782080436000,-151.0,0.00014094,2]
[425991816,1782080436000,-318.0,0.00014094,2]
[425991814,1782080436000,-319.0,0.00014094,2]
[425991815,1782080436000,-311.0,0.00014094,2]
[425991809,1782080436000,-315.0,0.00014094,2]
[425991813,1782080436000,-150.0,0.00014094,2]
[425991810,1782080436000,-151.0,0.00014094,2]
[425991811,1782080436000,-310.0,0.00014094,2]
[425991808,1782080436000,-600.0,0.00014093,2]
[425991807,1782080436000,-600.0,0.00014093,2]
[425991812,1782080436000,-309.0,0.00014094,2]
[425991820,1782080436000,-151.0,0.00014094,2]
[425991826,1782080436000,-315.0,0.00014095,2]
[425991823,1782080436000,-504.74582861,0.00014094,2]
[425991836,1782080436000,-311.0,0.00014095,2]
[425991834,1782080436000,-309.0,0.00014095,2]
[425991833,1782080436000,-312.0,0.00014095,2]
[425991835,1782080436000,-152.0,0.00014095,2]
[425991832,1782080436000,-317.0,0.00014095,2]
[425991831,1782080436000,-151.0,0.00014095,2]
[425991821,1782080436000,-321.0,0.00014094,2]
[425991829,1782080436000,-309.0,0.00014095,2]
[425991828,1782080436000,-150.0,0.00014095,2]
[425991827,1782080436000,-313.0,0.00014095,2]
[425991825,1782080436000,-318.0,0.00014095,2]
[425991824,1782080436000,-150.0,0.00014095,2]
[425991822,1782080436000,-309.0,0.00014094,2]
[425991830,1782080436000,-309.0,0.00014095,2]
[425991837,1782080465000,765.2995437,0.00014094,2]
[425991838,1782080503000,403.0584114,0.00014094,2]
[425991840,1782080559000,151.0,0.00014037,2]
[425991841,1782080562000,151.0,0.00014037,2]
[425991842,1782080593000,12687.9261999,0.00014094,2]
[425991843,1782080674000,1905.590165,0.00014094,2]
[425991844,1782080718000,373.3719066,0.00014094,2]
[425991845,1782080807000,-150.0,0.00014103,2]
[425991846,1782080807000,-40.52231421,0.00014103,2]
[425991848,1782080977000,3691.2442568,0.00014094,2]
[425991849,1782080998000,-158.0,0.00014102,2]
[425991850,1782080998000,-150.0,0.00014102,2]
[425991851,1782080998000,-151.0,0.00014102,2]
[425991852,1782080998000,-151.0,0.00014102,2]
[425991853,1782080998000,-151.0,0.00014102,2]
[425991854,1782080998000,-151.0,0.00014102,2]
[425991855,1782080998000,-150.0,0.00014102,2]
[425991856,1782080998000,-150.0,0.00014102,2]
[425991857,1782080998000,-153.0,0.00014102,2]
[425991860,1782080998000,-232.17611083,0.00014102,2]
[425991859,1782080998000,-261.0,0.00014102,2]
[425991862,1782080998000,-151.0,0.00014103,2]
[425991861,1782080998000,-112.47768579,0.00014103,2]
[425991864,1782080998000,-150.0,0.00014103,2]
[425991865,1782080998000,-151.0,0.00014103,2]
[425991858,1782080998000,-152.0,0.00014102,2]
[425991863,1782080998000,-152.0,0.00014103,2]
[425991866,1782080999000,-321.0,0.00014103,2]
[425991867,1782080999000,-312.0,0.00014103,2]
[425991869,1782080999000,-300.29202969,0.00014103,2]
[425991868,1782080999000,-151.0,0.00014103,2]
[425991917,1782081032000,-314.0,0.00014104,2]
[425991902,1782081032000,-151.0,0.00014104,2]
[425991904,1782081032000,-150.0,0.00014104,2]
[425991894,1782081032000,-311.0,0.00014104,2]
[425991906,1782081032000,-150.0,0.00014104,2]
[425991897,1782081032000,-465.0,0.00014104,2]
[425991908,1782081032000,-153.0,0.00014104,2]
[425991920,1782081032000,-310.0,0.00014105,2]
[425991926,1782081032000,-151.0,0.00014105,2]
[425991924,1782081032000,-319.0,0.00014105,2]
[425991896,1782081032000,-310.0,0.00014104,2]
[425991928,1782081032000,-152.0,0.00014111,2]
[425991912,1782081032000,-311.0,0.00014104,2]
[425991932,1782081032000,-150.0,0.00014134,2]
[425991910,1782081032000,-310.0,0.00014104,2]
[425991930,1782081032000,-160.0,0.00014113,2]
[425991914,1782081032000,-152.0,0.00014104,2]
[425991916,1782081032000,-152.0,0.00014104,2]
[425991936,1782081032000,-150.0,0.00014244,2]
[425991922,1782081032000,-319.0,0.00014105,2]
[425991898,1782081032000,-150.0,0.00014104,2]
[425991895,1782081032000,-151.0,0.00014104,2]
[425991942,1782081032000,-200.0,0.00014386,2]
[425991877,1782081032000,-200.0,0.00014103,2]
[425991878,1782081032000,-18.70797031,0.00014103,2]
[425991879,1782081032000,-315.0,0.00014103,2]
[425991881,1782081032000,-150.0,0.00014103,2]
[425991880,1782081032000,-312.0,0.00014103,2]
[425991883,1782081032000,-50.24482268,0.00014103,2]
[425991882,1782081032000,-263.75517732,0.00014103,2]